bitfinex-derivatives/quotes_BTCF0:USTF0_20260113
["timestamp","ask_amount","ask_price","bid_price","bid_amount"]
[1768331240053,0.09444597,93617.0,93600.0,2.6e-07]
[1768331240256,0.010687,93616.0,93600.0,2.6e-07]
[1768331240459,0.010687,93614.0,93600.0,2.6e-07]
[1768331240660,0.19349837,93611.0,93597.0,0.09624]
[1768331240859,0.010688,93609.0,93597.0,0.09624]
[1768331241356,0.09444597,93610.0,93589.0,0.09624]
[1768331241553,0.09444597,93610.0,93589.0,0.15624]
[1768331241756,0.010688,93601.0,93589.0,0.09624]
[1768331242164,0.010689,93599.0,93589.0,0.09624]
[1768331242366,0.010689,93599.0,93582.0,0.09624]
[1768331242767,0.010689,93599.0,93585.0,0.00016026]
[1768331243166,0.01069,93587.0,93569.0,0.09039952]
[1768331243466,0.09444597,93587.0,93574.0,5.5e-07]
[1768331243664,0.09444597,93586.0,93574.0,5.5e-07]
[1768331243862,0.01069,93585.0,93574.0,5.5e-07]
[1768331244268,0.00010291,93584.0,93574.0,5.5e-07]
[1768331245275,0.00545063,93585.0,93574.0,5.5e-07]
[1768331246264,5.588e-05,93584.0,93574.0,5.5e-07]
[1768331248164,0.010691,93581.0,93574.0,5.5e-07]
[1768331249880,0.010691,93579.0,93574.0,5.5e-07]
[1768331250166,0.010691,93577.0,93574.0,5.5e-07]
[1768331250375,0.010691,93576.0,93566.0,0.09624]
[1768331250675,0.09444597,93577.0,93566.0,0.09624]
[1768331250873,0.010691,93577.0,93566.0,0.09624]
[1768331251074,0.01085126,93580.0,93566.0,0.09624]
[1768331251275,5.643e-05,93579.0,93566.0,0.09624]
[1768331251473,0.010691,93576.0,93566.0,0.09624]
[1768331251877,0.010691,93576.0,93558.0,0.106933]
[1768331252081,0.010691,93576.0,93558.0,0.156933]
[1768331252262,5.643e-05,93579.0,93564.0,0.010693]
[1768331252575,5.643e-05,93579.0,93564.0,0.06]
[1768331253169,5.643e-05,93579.0,93564.0,0.05]
[1768331253368,0.010691,93578.0,93560.0,0.09037036]
[1768331253568,0.010691,93578.0,93561.0,0.09037036]
[1768331253874,0.010691,93578.0,93561.0,0.14037036]
[1768331255976,5.643e-05,93579.0,93562.0,0.18919721]
[1768331256177,5.643e-05,93579.0,93563.0,0.18919721]
[1768331256382,0.010691,93576.0,93563.0,0.18919721]
[1768331256579,5.643e-05,93579.0,93563.0,0.18919721]
[1768331257080,0.010691,93578.0,93564.0,0.18919721]
[1768331257379,5.643e-05,93579.0,93565.0,0.18919721]
[1768331257673,5.643e-05,93579.0,93567.0,0.18919721]
[1768331258271,5.643e-05,93579.0,93568.0,0.09077832]
[1768331258573,0.01074743,93579.0,93567.0,0.09841889]
[1768331258779,5.643e-05,93579.0,93567.0,0.09841889]
[1768331259176,5.643e-05,93579.0,93564.0,0.09077832]
[1768331259177,0.010692,93575.0,93565.0,0.09841889]
[1768331259572,5.643e-05,93579.0,93565.0,0.09841889]
[1768331259773,5.643e-05,93579.0,93565.0,0.18919721]
[1768331259974,0.01074743,93579.0,93566.0,0.09077832]
[1768331260673,5.643e-05,93579.0,93568.0,0.010692]
[1768331260876,0.09624,93586.0,93572.0,0.09077832]
[1768331261172,0.010691,93580.0,93572.0,0.09077832]
[1768331261372,0.010691,93580.0,93568.0,0.09077832]
[1768331261568,0.010691,93579.0,93564.0,0.09077832]
[1768331261776,0.010691,93576.0,93564.0,0.09077832]
[1768331262074,0.09713439,93582.0,93559.0,0.19989021]
[1768331262273,0.09930563,93581.0,93559.0,0.25989021]
[1768331262476,0.19644002,93581.0,93559.0,0.25989021]
[1768331263378,0.010691,93575.0,93559.0,0.24919721]
[1768331263576,0.19644002,93580.0,93559.0,0.24919721]
[1768331263776,0.19644002,93576.0,93559.0,0.06]
[1768331263973,0.19644002,93571.0,93553.0,0.00534456]
[1768331264277,0.010694,93555.0,93553.0,5.6e-07]
[1768331264577,0.09930563,93558.0,93542.0,0.09624]
[1768331264883,0.010694,93556.0,93542.0,0.09624]
[1768331265082,0.09930563,93558.0,93542.0,0.09624]
[1768331265875,0.010694,93557.0,93542.0,0.09624]
[1768331266877,0.19644002,93557.0,93542.0,0.09624]
[1768331267275,0.010694,93553.0,93542.0,0.09624]
[1768331268077,0.010694,93556.0,93542.0,0.09624]
[1768331268681,0.010694,93549.0,93535.0,0.11077832]
[1768331268884,0.010695,93542.0,93535.0,1e-06]
[1768331269088,0.010695,93543.0,93526.0,0.09624]
[1768331269277,0.19644002,93546.0,93526.0,0.15624]
[1768331269477,0.010695,93544.0,93526.0,0.15624]
[1768331270389,0.09930563,93548.0,93526.0,0.15624]
[1768331270588,0.11000063,93548.0,93527.0,0.010697]
[1768331270778,0.09930563,93548.0,93529.0,0.010697]
[1768331270983,0.010695,93547.0,93527.0,0.09077832]
[1768331271182,0.010695,93547.0,93527.0,0.15077832]
[1768331271987,0.010695,93547.0,93528.0,0.10147532]
[1768331272192,0.010693,93566.0,93528.0,0.10147532]
[1768331272193,0.09930563,93561.0,93537.0,0.09077832]
[1768331272378,0.09930563,93561.0,93528.0,0.05]
[1768331272379,0.09628,93564.0,93545.0,0.09841889]
[1768331272687,0.010694,93556.0,93545.0,0.09841889]
[1768331272890,0.010693,93559.0,93545.0,0.09841889]
[1768331273392,0.010693,93559.0,93544.0,0.09077832]
[1768331274687,0.010693,93560.0,93544.0,0.09077832]
[1768331274881,0.010693,93560.0,93543.0,0.00016034]
[1768331276980,0.010693,93558.0,93543.0,0.00016034]
[1768331277180,0.09628,93564.0,93543.0,0.00016034]
[1768331277384,0.19644002,93563.0,93543.0,0.00016034]
[1768331277581,0.19644002,93562.0,93543.0,0.00016034]
[1768331277781,0.010694,93554.0,93543.0,0.00016034]
[1768331277990,0.010694,93553.0,93543.0,0.00016034]
[1768331278390,0.09930563,93559.0,93543.0,0.00016034]
[1768331278591,0.010694,93554.0,93543.0,0.00016034]
[1768331278783,0.19644002,93559.0,93543.0,0.00016034]
[1768331280094,0.010694,93556.0,93543.0,0.00016034]
[1768331280693,0.09930563,93559.0,93543.0,0.00016034]
[1768331280988,0.010693,93559.0,93543.0,0.00016034]
[1768331281187,0.19644002,93572.0,93549.0,0.18919721]
[1768331281387,0.19644002,93577.0,93553.0,0.09077832]
[1768331281590,0.010693,93565.0,93553.0,0.18919721]
[1768331281777,0.010693,93565.0,93549.0,0.09628]
[1768331281778,0.010692,93568.0,93555.0,0.09077832]
[1768331282482,0.010693,93566.0,93555.0,0.09077832]
[1768331283090,0.010693,93564.0,93555.0,0.09077832]
[1768331283290,0.00016034,93570.0,93555.0,0.09077832]
[1768331283593,0.01085234,93570.0,93555.0,0.09077832]
[1768331284290,0.09628,93576.0,93549.0,0.09628]
[1768331284291,0.010692,93573.0,93556.0,0.18919721]
[1768331284495,0.09628,93576.0,93554.0,0.09077832]
[1768331284685,0.010693,93563.0,93554.0,0.09077832]
[1768331284884,0.010693,93566.0,93554.0,0.09077832]
[1768331285287,0.010693,93565.0,93554.0,0.09077832]
[1768331285494,0.010693,93565.0,93553.0,0.09841889]
[1768331286591,0.2930389,93576.0,93553.0,0.09841889]
[1768331286787,0.18858872,93575.0,93553.0,0.09841889]
[1768331287391,0.010693,93565.0,93553.0,0.09841889]
[1768331287695,0.010692,93568.0,93553.0,0.09841889]
[1768331289488,0.010692,93571.0,93553.0,0.10911289]
[1768331289688,0.010692,93571.0,93554.0,0.09387618]
[1768331289889,0.09113545,93575.0,93554.0,0.09387618]
[1768331290596,0.010692,93567.0,93554.0,0.09387618]
[1768331290995,0.09113545,93573.0,93550.0,0.09387618]
[1768331291192,0.09113545,93569.0,93549.0,0.09628]
[1768331291384,0.18858872,93566.0,93549.0,0.09628]
[1768331291585,0.010694,93550.0,93547.0,0.09628]
[1768331291792,0.010694,93553.0,93543.0,0.00016034]
[1768331292297,0.18858872,93566.0,93544.0,0.09628]
[1768331292493,0.010693,93559.0,93544.0,0.20085118]
[1768331293197,0.010693,93562.0,93546.0,0.010695]
[1768331293392,0.010693,93562.0,93544.0,0.09628]
[1768331293393,0.010692,93568.0,93551.0,0.010694]
[1768331293597,0.010692,93569.0,93551.0,0.09387618]
[1768331293892,0.010692,93567.0,93551.0,0.10457018]
[1768331295294,0.09647887,93573.0,93551.0,0.09387618]
[1768331295495,0.09647887,93573.0,93552.0,0.09387618]
[1768331296095,0.010692,93568.0,93552.0,0.10457018]
[1768331296296,0.010692,93569.0,93554.0,0.09085581]
[1768331296496,0.010692,93569.0,93555.0,0.19055787]
[1768331296699,0.010692,93569.0,93556.0,0.19055787]
[1768331297200,0.00016034,93571.0,93557.0,0.09085581]
[1768331297501,0.09628,93580.0,93566.0,0.09970206]
[1768331297694,0.00534228,93593.0,93564.0,0.010693]
[1768331297695,0.01069,93584.0,93564.0,0.09085581]
[1768331298000,0.09628,93585.0,93562.0,0.11039506]
[1768331298001,0.010691,93579.0,93562.0,0.11039506]
[1768331298302,0.010692,93570.0,93556.0,0.09970206]
[1768331298486,0.010692,93568.0,93556.0,0.09970206]
[1768331298690,0.010692,93568.0,93561.0,0.00016034]
[1768331299198,0.010692,93570.0,93561.0,0.00016034]
[1768331299699,0.010692,93573.0,93561.0,0.00016034]
[1768331299903,0.00010452,93575.0,93561.0,0.00016034]
[1768331299904,0.00010452,93575.0,93561.0,0.09101615]
[1768331300203,0.00010452,93575.0,93563.0,0.09085581]
[1768331300405,0.00010452,93575.0,93564.0,0.09085581]
[1768331301402,0.00010452,93575.0,93563.0,0.09970206]
[1768331304106,0.01079552,93575.0,93563.0,0.09970206]
[1768331304509,0.00010452,93575.0,93563.0,0.09970206]
[1768331305401,0.00010452,93575.0,93561.0,0.00016034]
[1768331305402,0.010693,93563.0,93561.0,3.4e-07]
[1768331305602,0.010693,93563.0,93550.0,0.09970206]
[1768331305603,0.19201033,93569.0,93550.0,0.09628]
[1768331305799,0.010693,93560.0,93540.0,0.1203]
[1768331306003,0.010694,93554.0,93539.0,0.09628]
[1768331306306,0.010694,93556.0,93539.0,0.09628]
[1768331306506,0.09871924,93560.0,93539.0,0.09628]
[1768331306892,0.010694,93555.0,93539.0,0.09628]
[1768331307406,0.010694,93553.0,93539.0,0.09628]
[1768331307609,0.09871924,93560.0,93539.0,0.09628]
[1768331307610,0.010695,93548.0,93539.0,0.09628]
[1768331307804,0.010694,93552.0,93539.0,0.09628]
[1768331308114,0.09329109,93557.0,93539.0,0.09628]
[1768331308315,0.09871924,93567.0,93545.0,0.010695]
[1768331308496,0.010693,93559.0,93543.0,0.09085581]
[1768331308701,0.19201033,93567.0,93543.0,0.09085581]
[1768331309210,0.19201033,93567.0,93545.0,0.010695]
[1768331309601,0.19201033,93567.0,93543.0,0.10155081]
[1768331309908,0.09871924,93564.0,93543.0,0.09085581]
[1768331310108,0.19201033,93564.0,93543.0,0.09085581]
[1768331310309,0.010693,93558.0,93543.0,0.09085581]
[1768331310807,0.010693,93561.0,93543.0,0.09085581]
[1768331311113,0.010693,93561.0,93544.0,0.010695]
[1768331311410,0.19201033,93569.0,93544.0,0.20125287]
[1768331311600,0.23906439,93570.0,93544.0,0.20125287]
[1768331311601,0.09871924,93566.0,93544.0,0.20125287]
[1768331311800,0.09871924,93564.0,93544.0,0.09970206]
[1768331312006,0.010694,93557.0,93544.0,0.09970206]
[1768331312207,0.010693,93558.0,93544.0,0.09970206]
[1768331312512,0.09871924,93564.0,93544.0,0.09970206]
[1768331312713,0.010693,93558.0,93544.0,0.09970206]
[1768331314011,0.09871924,93564.0,93544.0,0.09970206]
[1768331314404,0.010694,93552.0,93544.0,0.09970206]
[1768331315105,0.010694,93552.0,93539.0,0.18669873]
[1768331315299,0.010694,93552.0,93540.0,0.09041873]
[1768331316204,0.09871924,93563.0,93541.0,0.09041873]
[1768331316396,0.010694,93554.0,93541.0,0.09041873]
[1768331317604,0.010694,93552.0,93541.0,0.09041873]
[1768331318000,0.09871924,93563.0,93541.0,0.09041873]
[1768331318206,0.00534944,93553.0,93541.0,0.09041873]
[1768331318410,0.09871924,93563.0,93543.0,0.09041873]
[1768331318604,0.010694,93555.0,93544.0,0.09041873]
[1768331318814,0.010694,93557.0,93544.0,0.09041873]
[1768331320008,0.09814202,93563.0,93543.0,0.09135338]
[1768331320207,0.19400397,93563.0,93543.0,0.09135338]
[1768331320407,0.09814202,93562.0,93543.0,0.09135338]
[1768331320811,0.010694,93555.0,93543.0,0.19246711]
[1768331321017,0.010694,93555.0,93543.0,0.18177211]
[1768331321914,0.010694,93553.0,93543.0,0.18177211]
[1768331322617,0.0951911,93553.0,93540.0,0.09041873]
[1768331322912,0.09586195,93563.0,93540.0,0.09041873]
[1768331322913,0.10655395,93569.0,93549.0,0.18177211]
[1768331323124,0.10655395,93569.0,93552.0,0.09041873]
[1768331323125,0.0951911,93560.0,93552.0,0.09041873]
[1768331323412,0.1058841,93560.0,93551.0,0.09135338]
[1768331323714,0.09628,93577.0,93560.0,0.09041873]
[1768331323907,0.09814202,93584.0,93562.0,0.09041873]
[1768331323908,0.0951911,93580.0,93562.0,0.09041873]
[1768331324102,0.010691,93577.0,93562.0,0.19246511]
[1768331324312,0.010691,93577.0,93562.0,0.18193245]
[1768331324508,0.010691,93578.0,93562.0,0.18193245]
[1768331324701,0.09814202,93588.0,93567.0,0.09041873]
[1768331324902,0.0951911,93590.0,93570.0,0.09041873]
[1768331325219,0.09628,93589.0,93570.0,0.09041873]
[1768331325518,0.0951911,93580.0,93569.0,0.09135338]
[1768331326318,0.0951911,93580.0,93563.0,0.106973]
[1768331326704,1e-07,93580.0,93565.0,0.09041873]
[1768331326906,0.09628,93589.0,93575.0,0.09041873]
[1768331327222,0.00534228,93593.0,93579.0,0.18177211]
[1768331327717,0.00534228,93593.0,93574.0,0.010691]
[1768331327718,0.09628,93600.0,93584.0,0.18177211]
[1768331328220,0.010689,93599.0,93584.0,0.18177211]
[1768331328707,0.010689,93597.0,93584.0,0.09135338]
[1768331328910,0.010689,93597.0,93583.0,0.00016034]
[1768331329307,0.01722346,93599.0,93583.0,0.00016034]
[1768331329517,0.1914711,93600.0,93583.0,0.00016034]
[1768331329718,0.20831242,93600.0,93583.0,0.00016034]
[1768331330212,0.20831242,93600.0,93580.0,0.09000802]
[1768331330518,0.01069,93589.0,93572.0,0.09135338]
[1768331330818,0.09628,93600.0,93581.0,0.09135338]
[1768331331019,0.1914711,93600.0,93581.0,0.09135338]
[1768331331415,0.010689,93597.0,93579.0,0.010691]
[1768331331718,0.010689,93597.0,93581.0,0.00016034]
[1768331333110,0.30030212,93600.0,93581.0,0.00016034]
[1768331333310,0.010689,93598.0,93581.0,0.00016034]
[1768331334120,0.09814202,93599.0,93582.0,0.010691]
[1768331334316,0.09814202,93599.0,93581.0,0.00016034]
[1768331334317,0.010689,93598.0,93581.0,0.00016034]
[1768331334513,0.09814202,93597.0,93581.0,0.00016034]
[1768331334917,0.09814202,93597.0,93581.0,0.01085134]
[1768331335223,0.20469297,93597.0,93581.0,0.00016034]
[1768331335419,0.09814202,93596.0,93581.0,0.00016034]
[1768331335924,0.010689,93595.0,93581.0,0.00016034]
[1768331336221,0.19400397,93590.0,93581.0,0.00016034]
[1768331336521,0.09814202,93585.0,93571.0,0.09624]
[1768331336908,0.09814202,93585.0,93572.0,0.010692]
[1768331337112,0.09814202,93590.0,93572.0,0.010692]
[1768331337322,0.01069,93591.0,93574.0,0.010692]
[1768331337526,0.09814202,93582.0,93571.0,0.09624]
[1768331337719,0.09814202,93580.0,93564.0,0.09624]
[1768331338114,0.10883302,93577.0,93564.0,0.09624]
[1768331338426,0.10883402,93574.0,93564.0,0.06943723]
[1768331338610,0.09814202,93574.0,93564.0,0.06943723]
[1768331338812,0.010691,93577.0,93564.0,0.06943723]
[1768331340023,0.10883302,93577.0,93564.0,0.06943723]
[1768331340621,0.010691,93577.0,93564.0,0.06943723]
[1768331341613,0.010692,93573.0,93564.0,0.06943723]
[1768331341818,0.09586195,93577.0,93564.0,0.06943723]
[1768331342120,3.4e-07,93578.0,93576.0,0.010691]
[1768331342424,0.09624,93586.0,93569.0,0.10204538]
[1768331342620,0.01069,93585.0,93569.0,0.09135338]
[1768331342823,0.01069,93586.0,93569.0,0.09135338]
[1768331343015,0.09624,93587.0,93572.0,0.09041873]
[1768331343217,0.010691,93583.0,93572.0,0.09135338]
[1768331343416,0.01069,93586.0,93572.0,0.09135338]
[1768331343617,0.01069,93584.0,93572.0,0.09135338]
[1768331344418,0.01069,93584.0,93567.0,0.09041873]
[1768331344620,0.09624,93587.0,93569.0,0.010692]
[1768331344927,0.01069,93584.0,93569.0,0.09135338]
[1768331345525,0.09666953,93594.0,93572.0,0.09517577]
[1768331345720,0.09624,93595.0,93580.0,0.19036687]
[1768331346027,0.010689,93594.0,93580.0,0.19036687]
[1768331346225,0.010689,93594.0,93580.0,0.09517577]
[1768331347121,0.0951911,93590.0,93578.0,0.00016034]
[1768331347714,0.0951911,93590.0,93564.0,0.06943723]
[1768331347715,0.010691,93578.0,93568.0,0.09624]
[1768331347915,0.010691,93581.0,93568.0,0.09624]
[1768331348115,0.0951911,93580.0,93568.0,0.09624]
[1768331348315,0.09666953,93585.0,93568.0,0.09624]
[1768331348523,0.01069,93584.0,93568.0,0.09624]
[1768331348721,0.010691,93583.0,93568.0,0.09624]
[1768331349328,0.19186063,93580.0,93562.0,0.010693]
[1768331349526,0.09666953,93579.0,93561.0,0.010693]
[1768331349726,0.1058821,93580.0,93562.0,0.09517577]
[1768331349933,0.0951911,93580.0,93563.0,0.010693]
[1768331350631,0.0951911,93580.0,93562.0,0.09517577]
[1768331351029,0.010691,93579.0,93562.0,0.09517577]
[1768331352026,0.010691,93577.0,93562.0,0.09517577]
[1768331352232,0.010692,93574.0,93562.0,0.09517577]
[1768331353023,0.09666953,93579.0,93562.0,0.09517577]
[1768331353224,0.09666953,93579.0,93559.0,0.09624]
[1768331353431,0.010692,93567.0,93559.0,0.15624]
[1768331354025,0.010692,93570.0,93559.0,0.15624]
[1768331354227,0.0951911,93570.0,93553.0,0.00534456]
[1768331354427,0.0951911,93570.0,93553.0,0.06534456]
[1768331354637,0.010692,93569.0,93553.0,0.07603856]
[1768331354834,0.010692,93568.0,93553.0,0.06534456]
[1768331355032,0.09666953,93569.0,93553.0,5.6e-07]
[1768331355428,0.0951911,93570.0,93563.0,0.010693]
[1768331355628,0.18829349,93589.0,93566.0,0.09517577]
[1768331355838,0.09624,93588.0,93567.0,0.09517577]
[1768331356027,0.0951911,93580.0,93567.0,0.09517577]
[1768331356228,0.010691,93582.0,93567.0,0.09517577]
[1768331356427,0.0951911,93580.0,93564.0,0.010693]
[1768331356632,0.0951911,93580.0,93560.0,0.19073587]
[1768331357030,0.1058821,93580.0,93563.0,0.010693]
[1768331357432,0.010691,93578.0,93560.0,0.20142887]
[1768331357632,0.010691,93578.0,93560.0,0.09218398]
[1768331358140,0.1058821,93580.0,93561.0,0.010693]
[1768331358339,0.19589171,93580.0,93561.0,0.010693]
[1768331358541,0.09000961,93579.0,93561.0,0.010693]
[1768331358741,0.010691,93578.0,93561.0,0.010693]
[1768331359143,0.010692,93574.0,93555.0,0.10924589]
[1768331359342,0.010692,93572.0,93555.0,0.26142987]
[1768331359541,0.010692,93572.0,93555.0,0.16287798]
[1768331359742,0.0951911,93570.0,93555.0,0.09218398]
[1768331360339,0.09000961,93584.0,93561.0,0.09218398]
[1768331360537,0.0951911,93580.0,93561.0,0.09218398]
[1768331360734,0.0951911,93580.0,93567.0,0.010692]
[1768331360940,0.09000961,93584.0,93560.0,0.19374299]
[1768331360941,0.09000961,93584.0,93563.0,0.09218398]
[1768331361140,0.09624,93584.0,93572.0,0.010692]
[1768331361339,0.0951911,93590.0,93569.0,0.10287598]
[1768331361541,0.09624,93583.0,93569.0,0.10287598]
[1768331361741,0.09624,93583.0,93569.0,0.09218398]
[1768331361941,0.010691,93582.0,93569.0,0.09218398]
[1768331362137,0.18520071,93580.0,93562.0,0.09218398]
[1768331362449,0.09000961,93579.0,93557.0,0.09218398]
[1768331363351,0.09000961,93579.0,93554.0,0.09624]
[1768331363352,0.10070161,93574.0,93555.0,0.010694]
[1768331363543,0.0951911,93570.0,93552.0,0.010694]
[1768331363745,0.09000961,93569.0,93552.0,0.010694]
[1768331364250,0.09000961,93569.0,93550.0,0.09624]
[1768331364443,0.18672954,93568.0,93549.0,0.010694]
[1768331364642,0.09000961,93567.0,93549.0,0.010694]
[1768331364851,0.09000961,93567.0,93547.0,0.09624]
[1768331365050,0.09000961,93567.0,93545.0,0.09218398]
[1768331365243,0.09000961,93578.0,93556.0,0.09218398]
[1768331365553,0.010691,93576.0,93556.0,0.09218398]
[1768331366151,0.09000961,93576.0,93556.0,0.09218398]
[1768331366347,0.010692,93567.0,93549.0,0.09218398]
[1768331366842,0.19589271,93570.0,93549.0,0.09218398]
[1768331367354,0.19589271,93570.0,93553.0,0.010694]
[1768331367552,0.00016034,93569.0,93553.0,0.10287798]
[1768331367852,0.00016034,93569.0,93553.0,0.15287798]
[1768331368953,0.00016034,93569.0,93555.0,0.010694]
[1768331369344,0.00016034,93569.0,93553.0,0.09218398]
[1768331369544,0.00016034,93569.0,93553.0,0.15218398]
[1768331370550,0.00016034,93569.0,93554.0,0.09218398]
[1768331370741,0.00016034,93569.0,93554.0,0.10287798]
[1768331372255,0.00016034,93569.0,93556.0,0.010694]
[1768331372452,0.00016034,93569.0,93556.0,0.10287798]
[1768331373448,0.00016034,93569.0,93556.0,0.09218398]
[1768331375852,0.010692,93568.0,93556.0,0.09218398]
[1768331376156,0.010693,93564.0,93549.0,0.18961631]
[1768331376365,0.010693,93562.0,93549.0,0.09470297]
[1768331376550,0.010694,93557.0,93549.0,0.09470297]
[1768331376852,0.09631388,93561.0,93543.0,0.09470297]
[1768331377056,0.010694,93553.0,93543.0,0.09470297]
[1768331377449,0.09631388,93561.0,93543.0,0.09470297]
[1768331377850,0.09819286,93566.0,93544.0,0.10539797]
[1768331377851,0.19450674,93566.0,93544.0,0.10539797]
[1768331378651,0.00016034,93569.0,93542.0,0.010695]
[1768331378652,0.09631388,93560.0,93542.0,0.010695]
[1768331379059,0.010694,93557.0,93540.0,0.09470297]
[1768331379258,0.010694,93557.0,93540.0,0.14470297]
[1768331379659,0.010694,93555.0,93540.0,0.09470297]
[1768331380866,0.231037,93614.0,93558.0,0.010693]
[1768331380867,0.00534342,93573.0,93558.0,0.010693]
[1768331381159,0.01069,93587.0,93564.0,0.09491334]
[1768331381461,0.09631388,93589.0,93568.0,0.09470297]
[1768331381665,0.010691,93580.0,93560.0,0.09470297]
[1768331381856,0.09631388,93581.0,93556.0,0.010694]
[1768331381857,0.10700488,93577.0,93556.0,0.010694]
[1768331382159,0.010692,93574.0,93556.0,0.010694]
[1768331382462,0.010692,93574.0,93557.0,0.00016034]
[1768331382658,0.09631388,93576.0,93557.0,0.00016034]
[1768331382854,0.010692,93570.0,93557.0,0.00016034]
[1768331383259,0.010692,93571.0,93557.0,0.00016034]
[1768331383664,0.09631388,93565.0,93544.0,0.010695]
[1768331383855,0.09631388,93565.0,93542.0,0.09470297]
[1768331384054,0.09631388,93565.0,93548.0,0.010694]
[1768331384656,0.010692,93567.0,93550.0,0.010694]
[1768331385560,0.09819286,93568.0,93551.0,0.010694]
[1768331385763,0.010692,93570.0,93551.0,0.10539697]
[1768331386352,0.19450674,93575.0,93557.0,0.010693]
[1768331386562,0.010691,93575.0,93557.0,0.010693]
[1768331386763,0.010691,93575.0,93556.0,0.09470297]
[1768331387161,0.10700488,93575.0,93556.0,0.09470297]
[1768331387463,0.09631388,93575.0,93552.0,0.09491334]
[1768331387663,0.010692,93572.0,93551.0,0.09470297]
[1768331389469,0.010692,93572.0,93555.0,0.010694]
[1768331390973,0.010692,93572.0,93552.0,0.10539697]
[1768331391166,0.010692,93572.0,93553.0,0.00534456]
[1768331394476,0.010692,93572.0,93554.0,0.010694]
[1768331395364,0.09628,93584.0,93565.0,0.09470297]
[1768331395564,0.09628,93586.0,93569.0,0.09470297]
[1768331395769,0.09628,93586.0,93572.0,0.10539497]
[1768331395974,0.00016034,93584.0,93572.0,0.09470297]
[1768331396176,0.01085034,93584.0,93572.0,0.09470297]
[1768331396372,0.010691,93582.0,93572.0,0.09470297]
[1768331396777,0.00016034,93584.0,93572.0,9.7e-07]
[1768331397078,0.00016034,93584.0,93566.0,0.09628]
[1768331397380,0.010691,93582.0,93566.0,0.09628]
[1768331397577,0.010691,93582.0,93567.0,0.010692]
[1768331398074,0.00016034,93584.0,93566.0,0.09628]
[1768331398577,0.00016034,93584.0,93566.0,0.106972]
[1768331398578,0.010691,93581.0,93566.0,0.106972]
[1768331398981,0.00016034,93584.0,93568.0,0.010692]
[1768331399180,0.010691,93583.0,93566.0,0.09628]
[1768331399567,0.10700488,93583.0,93565.0,0.010692]
[1768331399775,0.010691,93579.0,93564.0,0.09628]
[1768331399975,0.09631388,93581.0,93564.0,0.09628]
[1768331399976,0.010691,93577.0,93564.0,0.09628]
[1768331400371,0.19450674,93575.0,93558.0,0.010693]
[1768331400576,0.09631388,93574.0,93555.0,0.09628]
[1768331400874,0.010692,93569.0,93555.0,0.09628]
[1768331401577,0.09631388,93568.0,93553.0,0.00534456]
[1768331401877,0.010689,93598.0,93555.0,0.010694]
[1768331402084,0.09628,93597.0,93563.0,0.09470297]
[1768331402276,0.09628,93597.0,93553.0,0.00529476]
[1768331402277,0.09628,93597.0,93564.0,0.10539597]
[1768331402582,0.09628,93597.0,93571.0,0.010692]
[1768331402583,0.010689,93596.0,93571.0,0.010692]
[1768331402777,0.01069,93589.0,93572.0,0.10539497]
[1768331402973,0.09628,93597.0,93566.0,0.18961631]
[1768331403172,0.010691,93580.0,93571.0,0.00016034]
[1768331403375,0.09628,93597.0,93571.0,0.00016034]
[1768331403577,0.010691,93582.0,93571.0,0.00016034]
[1768331403780,0.010691,93580.0,93571.0,0.00016034]
[1768331403978,0.010691,93578.0,93571.0,0.00016034]
[1768331404379,0.09631388,93587.0,93571.0,0.01085234]
[1768331404570,0.09631388,93587.0,93571.0,0.00016034]
[1768331404776,0.010691,93582.0,93571.0,0.00016034]
[1768331404974,0.010691,93575.0,93571.0,0.00016034]
[1768331405183,0.09073138,93583.0,93559.0,0.09964746]
[1768331405375,0.010692,93573.0,93558.0,0.010693]
[1768331405687,0.09073138,93582.0,93557.0,0.09723371]
[1768331405688,0.010692,93574.0,93559.0,0.106973]
[1768331406275,0.010691,93576.0,93562.0,0.010693]
[1768331406484,0.010692,93574.0,93559.0,0.106973]
[1768331406687,0.010692,93572.0,93559.0,0.09628]
[1768331407069,0.010692,93572.0,93558.0,0.010693]
[1768331407284,0.010692,93572.0,93558.0,0.09628]
[1768331407485,0.010692,93573.0,93559.0,0.010693]
[1768331407876,0.010691,93580.0,93560.0,0.09723371]
[1768331408172,0.09073138,93583.0,93561.0,0.09723371]
[1768331408380,0.010692,93571.0,93558.0,0.09628]
[1768331408773,0.010692,93571.0,93556.0,0.010694]
[1768331408979,0.010692,93571.0,93557.0,0.09628]
[1768331409188,0.010692,93571.0,93553.0,0.20217593]
[1768331409189,0.09073138,93578.0,93555.0,0.010694]
[1768331409380,0.09073138,93578.0,93555.0,0.106974]
[1768331409579,0.010692,93568.0,93555.0,0.09628]
[1768331410474,0.010692,93566.0,93555.0,0.09628]
[1768331410876,0.09073138,93577.0,93555.0,0.09628]
[1768331411278,0.010692,93567.0,93555.0,0.09628]
[1768331411481,0.09073138,93576.0,93555.0,0.09628]
[1768331411777,0.010693,93566.0,93555.0,0.09628]
[1768331411986,0.010693,93563.0,93555.0,0.09628]
[1768331412186,0.010693,93566.0,93555.0,0.09628]
[1768331412377,0.010692,93568.0,93555.0,0.09628]
[1768331412576,0.010693,93565.0,93555.0,0.09628]
[1768331413477,0.010693,93564.0,93553.0,0.10252847]
[1768331413685,0.010693,93558.0,93553.0,0.00529476]
[1768331414184,0.010694,93556.0,93553.0,7.6e-07]
[1768331414385,0.010694,93554.0,93553.0,7.6e-07]
[1768331414778,0.010694,93557.0,93553.0,7.6e-07]
[1768331415481,0.09621139,93585.0,93557.0,0.09723371]
[1768331415686,0.09621139,93593.0,93568.0,0.09723371]
[1768331415979,0.09621139,93576.0,93557.0,0.09628]
[1768331416179,0.09621139,93576.0,93558.0,0.010693]
[1768331416381,0.10690239,93576.0,93561.0,0.010693]
[1768331416578,0.010692,93572.0,93557.0,0.09628]
[1768331416891,0.010692,93572.0,93557.0,0.106973]
[1768331417186,0.010692,93572.0,93557.0,0.09628]
[1768331417486,0.010693,93561.0,93553.0,7.6e-07]
[1768331417683,0.09417314,93567.0,93553.0,7.6e-07]
[1768331417989,0.010693,93559.0,93553.0,7.6e-07]
[1768331418491,0.010693,93562.0,93553.0,7.6e-07]
[1768331418685,0.010693,93565.0,93553.0,7.6e-07]
[1768331418987,0.10486614,93566.0,93553.0,7.6e-07]
[1768331419188,0.010693,93564.0,93553.0,7.6e-07]
[1768331419580,0.09417314,93566.0,93553.0,7.6e-07]
[1768331420091,0.010692,93567.0,93553.0,7.6e-07]
[1768331420284,0.09417314,93570.0,93553.0,7.6e-07]